fUST/lending_fUST_20250111
["ID","MTS","AMOUNT","RATE_DAILY","PERIOD"]
[348482391,1736565040300,-506.66830411,0.00021917,3]
[348482392,1736565040309,-511.77305352,0.00021917,3]
[348482393,1736565040319,-509.3371292,0.00021917,3]
[348482394,1736565040329,-510.43491859,0.00021917,3]
[348482395,1736565040338,-504.5,0.00021917,3]
[348482396,1736565040348,-511.07339346,0.00021917,3]
[348482397,1736565040357,-508.03833523,0.00021917,3]
[348482398,1736565040367,-508.67748916,0.00021917,3]
[348482399,1736565040376,-507.23483983,0.00021917,3]
[348482400,1736565040387,-504.7817307,0.00021917,3]
[348482401,1736565040396,-500.0,0.00021917,3]
[348482402,1736565040406,-501.76642101,0.00021917,3]
[348482403,1736565040416,-500.0,0.00021917,3]
[348482404,1736565040425,-500.0,0.00021917,3]
[348482405,1736565040435,-511.43441578,0.00021917,3]
[348482406,1736565040445,-513.17789669,0.00021917,3]
[348482407,1736565040455,-500.0,0.00021917,3]
[348482408,1736565040465,-255.21827598,0.00021917,3]
[348482409,1736565040475,-504.19560636,0.00021917,3]
[348482410,1736565040485,-506.86350946,0.00021917,3]
[348482411,1736565040494,-506.75003336,0.00021917,3]
[348482412,1736565040503,-500.0,0.00021917,3]
[348482413,1736565040513,-3260.22,0.00021917,3]
[348482414,1736565040523,-513.3776371,0.00021917,3]
[348482415,1736565040532,-506.49106046,0.00021917,3]
[348482416,1736565040542,-500.0,0.00021917,3]
[348482417,1736565040552,-500.0,0.00021917,3]
[348482418,1736565040561,-507.70315993,0.00021917,3]
[348482419,1736565040571,-504.04254691,0.00021917,3]
[348482420,1736565040581,-507.37153026,0.00021917,3]
[348482421,1736565040591,-504.51120209,0.00021917,3]
[348482422,1736565040600,-515.43579307,0.00021917,3]
[348482423,1736565040714,-515.20490711,0.00021917,3]
[348482424,1736565040739,-500.0,0.00021917,3]
[348482425,1736565040749,-501.43694023,0.00021917,3]
[348482426,1736565040759,-500.0,0.00021917,3]
[348482427,1736565040769,-504.92337775,0.00021917,3]
[348482428,1736565040778,-500.0,0.00021917,3]
[348482429,1736565040788,-503.05559592,0.00021917,3]
[348482430,1736565040797,-509.1765911,0.00021917,3]
[348482431,1736565040807,-500.97946231,0.00021917,3]
[348482432,1736565040816,-504.50251439,0.00021917,3]
[348482433,1736565040826,-504.86287381,0.00021917,3]
[348482434,1736565040836,-500.0,0.00021917,3]
[348482435,1736565040850,-490.86430657,0.00021917,3]
[348482436,1736565040860,-507.51296531,0.00021917,3]
[348482437,1736565040869,-506.67085114,0.00021917,3]
[348482438,1736565040879,-505.96740793,0.00021917,3]
[348482439,1736565040891,-507.99836252,0.00021917,3]
[348482440,1736565040900,-505.15639731,0.00021917,3]
[348482441,1736565040911,-511.18243724,0.00021917,3]
[348482442,1736565040922,-500.0,0.00021917,3]
[348482443,1736565040933,-503.78944464,0.00021917,3]
[348482444,1736565040943,-500.0,0.00021917,3]
[348482445,1736565040952,-506.66197073,0.00021917,3]
[348482446,1736565040961,-506.51690709,0.00021917,3]
[348482447,1736565040971,-510.82279297,0.00021917,3]
[348482448,1736565040981,-507.86805348,0.00021917,3]
[348482449,1736565040991,-500.0,0.00021917,3]
[348482450,1736565041000,-503.67649248,0.00021917,3]
[348482451,1736565041011,-508.01460672,0.00021917,3]
[348482452,1736565041020,-502.56099749,0.00021917,3]
[348482453,1736565041029,-509.81679623,0.00021917,3]
[348482454,1736565041039,-500.0,0.00021917,3]
[348482455,1736565041049,-503.35941578,0.00021917,3]
[348482456,1736565041060,-1028.00329291,0.00021917,3]
[348482457,1736565041070,-507.96828811,0.00021917,3]
[348482458,1736565041079,-500.0,0.00021917,3]
[348482459,1736565041089,-500.0,0.00021917,3]
[348482460,1736565041101,-512.83967734,0.00021917,3]
[348482461,1736565041110,-506.40083269,0.00021917,3]
[348482462,1736565041120,-500.0,0.00021917,3]
[348482463,1736565041129,-500.0,0.00021917,3]
[348482464,1736565041139,-533.99375567,0.00021917,3]
[348482465,1736565041148,-506.63105824,0.00021917,3]
[348482466,1736565041158,-509.30321835,0.00021917,3]
[348482467,1736565041167,-510.16313121,0.00021917,3]
[348482468,1736565041178,-501.10635704,0.00021917,3]
[348482469,1736565041188,-500.0,0.00021917,3]
[348482470,1736565041197,-500.0,0.00021917,3]
[348482471,1736565041207,-500.0,0.00021917,3]
[348482472,1736565041216,-500.0,0.00021917,3]
[348482473,1736565041226,-224.038033,0.00021917,2]
[348482474,1736565041235,-500.0,0.00021917,3]
[348482475,1736565041245,-224.038028,0.00021917,2]
[348482476,1736565041254,-504.04665246,0.00021917,3]
[348482477,1736565041264,-252.65051498,0.00021917,3]
[348482478,1736565041274,-502.53085735,0.00021917,3]
[348482479,1736565041283,-500.0,0.00021917,3]
[348482480,1736565041292,-500.0,0.00021917,3]
[348482481,1736565041302,-505.33192698,0.00021917,2]
[348482482,1736565041311,-500.0,0.00021917,3]
[348482483,1736565041321,-507.37684832,0.00021917,3]
[348482484,1736565041331,-514.72055265,0.00021917,3]
[348482485,1736565041340,-503.76089368,0.00021917,3]
[348482486,1736565041352,-504.6510346,0.00021917,3]
[348482487,1736565041361,-500.0,0.00021917,3]
[348482488,1736565041371,-505.80187102,0.00021917,3]
[348482489,1736565041380,-265.11027925,0.00021917,3]
[348482490,1736565041389,-503.06447767,0.00021917,3]
[348482491,1736565041399,-509.20476433,0.00021917,3]
[348482492,1736565041409,-506.12168442,0.00021917,3]
[348482493,1736565041418,-503.31015499,0.00021917,3]
[348482494,1736565041427,-508.43313659,0.00021917,3]
[348482495,1736565041436,-504.70079459,0.00021917,3]
[348482496,1736565041446,-502.67615778,0.00021917,3]
[348482497,1736565041455,-503.60474657,0.00021917,3]
[348482498,1736565041465,-503.5009417,0.00021917,3]
[348482499,1736565041474,-316.71906712,0.00021917,3]
[348482500,1736565041484,-500.0,0.00021917,3]
[348482501,1736565041493,-500.0,0.00021917,3]
[348482502,1736565041503,-506.69283673,0.00021917,3]
[348482503,1736565041512,-1309.76,0.00021917,3]
[348482504,1736565041522,-507.38415771,0.00021917,3]
[348482505,1736565041531,-505.70815689,0.00021917,3]
[348482506,1736565041541,-509.71580654,0.00021917,3]
[348482507,1736565041550,-171.61038391,0.00021917,3]
[348482508,1736565041560,-500.0,0.00021917,3]
[348482509,1736565041570,-507.922622,0.00021917,3]
[348482510,1736565041579,-500.0,0.00021917,3]
[348482511,1736565041588,-506.43079251,0.00021917,3]
[348482512,1736565041599,-500.0,0.00021917,3]
[348482513,1736565041609,-501.95130375,0.00021917,3]
[348482514,1736565041618,-500.0,0.00021917,3]
[348482515,1736565041628,-500.0,0.00021917,3]
[348482516,1736565041637,-520.21268269,0.00021917,3]
[348482517,1736565041647,-408.8080121,0.00021917,3]
[348482518,1736565041657,-581.55260969,0.00021917,3]
[348482519,1736565041666,-500.0,0.00021917,3]
[348482520,1736565041675,-508.45618634,0.00021917,3]
[348482521,1736565041685,-500.0,0.00021917,3]
[348482522,1736565041694,-500.0,0.00021917,3]
[348482523,1736565041704,-3168.77,0.00021917,3]
[348482524,1736565041713,-512.30464513,0.00021917,3]
[348482525,1736565041724,-507.16482187,0.00021917,3]
[348482526,1736565041733,-500.0,0.00021917,3]
[348482527,1736565041742,-510.41761574,0.00021917,3]
[348482528,1736565041752,-500.0,0.00021917,3]
[348482529,1736565041762,-510.48528788,0.00021917,3]
[348482530,1736565041771,-500.0,0.00021917,3]
[348482531,1736565041780,-500.0,0.00021917,3]
[348482532,1736565041790,-503.07,0.00021917,3]
[348482533,1736565041799,-507.48603593,0.00021917,3]
[348482534,1736565041808,-500.0,0.00021917,2]
[348482535,1736565041818,-500.0,0.00021917,3]
[348482536,1736565041827,-598.28,0.00021917,3]
[348482537,1736565041837,-633.09,0.00021917,3]
[348482538,1736565041851,-1682.72,0.00021917,3]
[348482539,1736565041860,-500.0,0.00021917,3]
[348482540,1736565041870,-500.0,0.00021917,3]
[348482541,1736565041879,-515.51,0.00021917,3]
[348482542,1736565041890,-500.0,0.00021917,3]
[348482543,1736565041900,-500.0,0.00021917,3]
[348482544,1736565041909,-247.1868817,0.00021917,3]
[348482545,1736565041920,-511.27728598,0.00021917,3]
[348482546,1736565041929,-618.58,0.00021917,3]
[348482547,1736565041939,-500.0,0.00021917,3]
[348482548,1736565041948,-500.0,0.00021917,3]
[348482549,1736565041958,-500.0,0.00021917,3]
[348482550,1736565041968,-500.0,0.00021917,3]
[348482551,1736565041977,-500.0,0.00021917,3]
[348482552,1736565041987,-500.0,0.00021917,3]
[348482553,1736565041996,-500.0,0.00021917,2]
[348482554,1736565042006,-500.0,0.00021917,3]
[348482555,1736565042015,-3316.56,0.00021917,3]
[348482556,1736565042025,-1032.0,0.00021917,3]
[348482557,1736565042035,-500.0,0.00021917,3]
[348482558,1736565042046,-500.0,0.00021917,3]
[348482559,1736565042056,-619.66,0.00021917,3]
[348482560,1736565042066,-500.0,0.00021917,3]
[348482561,1736565042075,-500.0,0.00021917,3]
[348482562,1736565042085,-745.89,0.00021917,3]
[348482563,1736565042095,-504.49387162,0.00021917,3]
[348482564,1736565042104,-500.0,0.00021917,3]
[348482565,1736565042113,-500.0,0.00021917,3]
[348482566,1736565042123,-500.0,0.00021917,3]
[348482567,1736565042133,-500.0,0.00021917,3]
[348482568,1736565042143,-500.0,0.00021917,3]
[348482569,1736565042152,-616.41861044,0.00021917,3]
[348482570,1736565042161,-500.0,0.00021917,3]
[348482571,1736565042170,-505.64505851,0.00021917,3]
[348482572,1736565042180,-500.0,0.00021917,3]
[348482573,1736565042189,-644.73540781,0.00021917,3]
[348482574,1736565042199,-500.0,0.00021917,3]
[348482575,1736565042208,-547.7,0.00021917,3]
[348482576,1736565042218,-500.0,0.00021917,3]
[348482577,1736565042227,-500.0,0.00021917,3]
[348482578,1736565042237,-500.0,0.00021917,3]
[348482579,1736565042247,-500.0,0.00021917,3]
[348482580,1736565042257,-500.0,0.00021917,3]
[348482581,1736565042266,-500.0,0.00021917,3]
[348482582,1736565042276,-507.02306433,0.00021917,3]
[348482583,1736565042285,-531.87,0.00021917,3]
[348482584,1736565042295,-500.0,0.00021917,3]
[348482585,1736565042304,-500.0,0.00021917,3]
[348482586,1736565042313,-500.0,0.00021917,3]
[348482587,1736565042322,-522.750942,0.00021917,3]
[348482588,1736565042332,-500.0,0.00021917,3]
[348482589,1736565042342,-500.0,0.00021917,3]
[348482590,1736565042353,-500.0,0.00021917,3]
[348482591,1736565042362,-505.53921389,0.00021917,3]
[348482592,1736565042372,-1306.6,0.00021917,3]
[348482593,1736565042381,-489.14009514,0.00021917,3]
[348482594,1736565042391,-183.06690844,0.00021917,3]
[348482595,1736565042400,-654.15,0.00021917,3]
[348482596,1736565042410,-500.0,0.00021917,3]
[348482597,1736565042419,-500.0,0.00021917,3]
[348482598,1736565042428,-508.53371526,0.00021917,3]
[348482599,1736565042438,-506.8671001,0.00021917,3]
[348482600,1736565042447,-500.0,0.00021917,3]
[348482601,1736565042457,-500.0,0.00021917,3]
[348482602,1736565042467,-500.0,0.00021917,3]
[348482603,1736565042476,-1248.86,0.00021917,3]
[348482604,1736565042486,-500.0,0.00021917,3]
[348482605,1736565042495,-500.0,0.00021917,3]
[348482606,1736565042505,-589.58,0.00021917,3]
[348482607,1736565042515,-500.0,0.00021917,3]
[348482608,1736565042524,-507.09387705,0.00021917,3]
[348482609,1736565042535,-526.36,0.00021917,3]
[348482610,1736565042544,-500.0,0.00021917,3]
[348482611,1736565042555,-500.0,0.00021917,3]
[348482612,1736565042564,-154.0035067,0.00021917,3]
[348482613,1736565042574,-707.27,0.00021917,3]
[348482614,1736565042583,-504.72041222,0.00021917,3]
[348482615,1736565042593,-5342.55,0.00021917,3]
[348482616,1736565042603,-1292.33387878,0.00021934,2]
[348482618,1736565042614,-501.2671585,0.00021958,2]
[348482619,1736565042624,-500.0,0.00021959,2]
[348482620,1736565042634,-1000.0000009,0.00021972,2]
[348482621,1736565042643,-500.0,0.00021973,2]
[348482622,1736565042653,-152.30930197,0.00021973,2]
[348482623,1736565042662,-500.0,0.0002198,2]
[348482624,1736565042672,-210.0,0.00022,10]
[348482625,1736565042681,-210.0,0.00022,9]
[348482626,1736565042691,-28959.09499355,0.00022,2]
[348482627,1736565042700,-1000.0,0.00022,2]
[348482628,1736565042710,-4008.09,0.00022,3]
[348482629,1736565042719,-1292.33387878,0.00022038,2]
[348482630,1736565042729,-500.0,0.00022106,2]
[348482631,1736565042738,-1292.33387878,0.00022141,2]
[348482632,1736565042748,-500.0,0.00022191,3]
[348482633,1736565042758,-509.47258078,0.00022191,3]
[348482634,1736565042767,-500.0,0.00022191,3]
[348482635,1736565042777,-500.0,0.00022191,3]
[348482636,1736565042786,-500.0,0.00022191,3]
[348482637,1736565042796,-500.0,0.00022191,3]
[348482638,1736565042806,-500.0,0.00022191,3]
[348482640,1736565042815,-500.0,0.00022191,3]
[348482642,1736565042825,-500.0,0.00022191,3]
[348482644,1736565042834,-500.0,0.00022191,3]
[348482645,1736565042849,-562.21058647,0.00022191,3]
[348482646,1736565042858,-500.0,0.00022191,3]
[348482647,1736565042867,-500.0,0.00022191,3]
[348482648,1736565042876,-500.0,0.00022191,3]
[348482649,1736565042886,-500.0,0.00022191,3]
[348482650,1736565042898,-500.0,0.00022191,3]
[348482651,1736565042907,-687.34,0.00022191,3]
[348482652,1736565042916,-514.42920478,0.00022191,3]
[348482653,1736565042927,-506.95703481,0.00022191,3]
[348482654,1736565042937,-500.0,0.00022191,3]
[348482655,1736565042946,-500.0,0.00022191,3]
[348482656,1736565042955,-614.96,0.00022191,3]
[348482657,1736565042964,-519.24,0.00022191,3]
[348482658,1736565042974,-500.0,0.00022191,3]
[348482659,1736565042983,-504.5,0.00022191,3]
[348482661,1736565042992,-500.0,0.00022191,3]
[348482663,1736565043001,-500.0,0.00022191,3]
[348482664,1736565043011,-3260.22,0.00022191,3]
[348482665,1736565043020,-500.0,0.00022191,3]
[348482666,1736565043029,-500.0,0.00022191,3]
[348482667,1736565043039,-500.0,0.00022191,3]
[348482668,1736565043048,-500.0,0.00022191,3]
[348482669,1736565043059,-500.0,0.00022191,3]
[348482670,1736565043069,-500.0,0.00022191,3]
[348482671,1736565043078,-500.0,0.00022191,3]
[348482672,1736565043088,-500.0,0.00022191,3]
[348482673,1736565043098,-500.0,0.00022191,3]
[348482674,1736565043107,-500.0,0.00022191,3]
[348482675,1736565043117,-581.94222444,0.00022191,3]
[348482676,1736565043127,-500.0,0.00022191,3]
[348482677,1736565043137,-500.0,0.00022191,3]
[348482678,1736565043146,-500.0,0.00022191,3]
[348482679,1736565043155,-500.0,0.00022191,3]
[348482680,1736565043165,-500.0,0.00022191,3]
[348482681,1736565043175,-500.0,0.00022191,3]
[348482682,1736565043184,-500.0,0.00022191,3]
[348482683,1736565043194,-500.0,0.00022191,3]
[348482684,1736565043203,-500.0,0.00022191,3]
[348482685,1736565043212,-273.14861781,0.00022191,3]
[348482686,1736565043223,-513.96505556,0.00022191,3]
[348482687,1736565043233,-1309.76,0.00022191,3]
[348482688,1736565043242,-500.0,0.00022191,3]
[348482689,1736565043251,-505.75305556,0.00022191,3]
[348482690,1736565043261,-506.39451715,0.00022191,3]
[348482691,1736565043270,-507.00031488,0.00022191,3]
[348482692,1736565043280,-500.0,0.00022191,3]
[348482693,1736565043396,-500.0,0.00022191,3]
[348482694,1736565043407,-500.0,0.00022191,3]
[348482695,1736565043416,-3168.77,0.00022191,3]
[348482696,1736565043426,-500.0,0.00022191,3]
[348482697,1736565043435,-500.0,0.00022191,3]
[348482698,1736565043445,-480.0,0.00022191,3]
[348482699,1736565043454,-500.0,0.00022191,3]
[348482700,1736565043464,-503.07,0.00022191,3]
[348482701,1736565043473,-500.0,0.00022191,2]
[348482702,1736565043484,-500.0,0.00022191,3]
[348482703,1736565043493,-598.28,0.00022191,3]
[348482704,1736565043503,-633.09,0.00022191,3]
[348482705,1736565043512,-1682.72,0.00022191,3]
[348482706,1736565043521,-460.0,0.00022191,3]
[348482707,1736565043531,-515.51,0.00022191,3]
[348482708,1736565043540,-500.0,0.00022191,3]
[348482709,1736565043550,-618.58,0.00022191,3]
[348482710,1736565043560,-500.0,0.00022191,3]
[348482711,1736565043570,-500.0,0.00022191,3]
[348482712,1736565043579,-500.0,0.00022191,2]
[348482713,1736565043590,-500.0,0.00022191,3]
[348482714,1736565043599,-3316.56,0.00022191,3]
[348482715,1736565043609,-1032.0,0.00022191,3]
[348482716,1736565043619,-500.0,0.00022191,3]
[348482717,1736565043629,-500.0,0.00022191,3]
[348482718,1736565043639,-619.66,0.00022191,3]
[348482719,1736565043649,-500.0,0.00022191,3]
[348482720,1736565043659,-745.89,0.00022191,3]
[348482721,1736565043668,-500.0,0.00022191,3]
[348482722,1736565043678,-500.0,0.00022191,3]
[348482723,1736565043687,-500.0,0.00022191,3]
[348482724,1736565043697,-500.0,0.00022191,3]
[348482725,1736565043706,-500.0,0.00022191,3]
[348482726,1736565043716,-547.7,0.00022191,3]
[348482727,1736565043725,-500.0,0.00022191,3]
[348482728,1736565043735,-500.0,0.00022191,3]
[348482729,1736565043746,-500.0,0.00022191,3]
[348482730,1736565043756,-500.0,0.00022191,3]
[348482731,1736565043766,-500.0,0.00022191,3]
[348482732,1736565043775,-531.87,0.00022191,3]
[348482733,1736565043784,-500.0,0.00022191,3]
[348482734,1736565043794,-500.0,0.00022191,3]
[348482735,1736565043803,-500.0,0.00022191,3]
[348482736,1736565043812,-500.0,0.00022191,3]
[348482737,1736565043821,-500.0,0.00022191,3]
[348482738,1736565043830,-1306.6,0.00022191,3]
[348482739,1736565043841,-654.15,0.00022191,3]
[348482740,1736565043852,-500.0,0.00022191,3]
[348482741,1736565043862,-500.0,0.00022191,3]
[348482742,1736565043871,-500.0,0.00022191,3]
[348482743,1736565043880,-1248.86,0.00022191,3]
[348482744,1736565043890,-500.0,0.00022191,3]
[348482745,1736565043899,-500.0,0.00022191,3]
[348482746,1736565043908,-500.0,0.00022191,3]
[348482747,1736565043918,-526.36,0.00022191,3]
[348482748,1736565043927,-500.0,0.00022191,3]
[348482749,1736565043936,-505.50693515,0.00022191,3]
[348482750,1736565043946,-707.27,0.00022191,3]
[348482751,1736565043955,-5342.55,0.00022191,3]
[348482752,1736565043964,-924.77,0.000222,2]
[348482753,1736565043974,-207.0,0.00022227,2]
[348482754,1736565043983,-208.44,0.00022227,2]
[348482755,1736565043992,-1292.33387878,0.00022245,2]
[348482756,1736565044002,-1251.0,0.00022257,4]
[348482757,1736565044012,-537.30672508,0.00022262,2]
[348482758,1736565044022,-1006.26206948,0.00022319,2]
[348482759,1736565044031,-1000.0,0.00022322,2]
[348482760,1736565044040,-1292.33387878,0.00022348,2]
[348482761,1736565044051,-1000.0,0.00022365,2]
[348482762,1736565044061,-1000.0,0.00022366,2]
[348482763,1736565044071,-151.0,0.000224,10]
[348482764,1736565044081,-300.0,0.000224,10]
[348482765,1736565044091,-1292.33387878,0.00022452,2]
[348482766,1736565044101,-500.0,0.00022465,3]
[348482767,1736565044111,-500.0,0.00022465,3]
[348482768,1736565044120,-386.06216712,0.00022465,3]
[348482769,1736565044130,-507.51652229,0.00022465,3]
[348482770,1736565044139,-500.0,0.00022465,3]
[348482771,1736565044148,-506.06509261,0.00022465,3]
[348482772,1736565044158,-500.0,0.00022465,3]
[348482773,1736565044168,-687.34,0.00022465,3]
[348482774,1736565044177,-500.0,0.00022465,3]
[348482775,1736565044186,-519.24,0.00022465,3]
[348482776,1736565044196,-500.0,0.00022465,3]
[348482777,1736565044205,-504.5,0.00022465,3]
[348482778,1736565044215,-500.0,0.00022465,3]
[348482779,1736565044224,-500.0,0.00022465,3]
[348482780,1736565044234,-3260.22,0.00022465,3]
[348482781,1736565044243,-500.0,0.00022465,3]
[348482782,1736565044253,-500.0,0.00022465,3]
[348482783,1736565044263,-500.0,0.00022465,3]
[348482784,1736565044274,-500.0,0.00022465,3]
[348482785,1736565044283,-500.0,0.00022465,3]
[348482786,1736565044294,-500.0,0.00022465,3]
[348482787,1736565044303,-500.0,0.00022465,3]
[348482788,1736565044313,-500.0,0.00022465,3]
[348482789,1736565044323,-500.0,0.00022465,3]
[348482790,1736565044333,-645.40729663,0.00022465,3]
[348482791,1736565044343,-500.0,0.00022465,3]
[348482792,1736565044353,-500.0,0.00022465,3]
[348482793,1736565044363,-500.0,0.00022465,3]
[348482794,1736565044372,-500.0,0.00022465,3]
[348482795,1736565044382,-500.0,0.00022465,3]
[348482796,1736565044391,-500.0,0.00022465,3]
[348482797,1736565044400,-1309.76,0.00022465,3]
[348482798,1736565044409,-500.0,0.00022465,3]
[348482799,1736565044419,-584.27,0.00022465,3]
[348482800,1736565044428,-630.68,0.00022465,3]
[348482801,1736565044437,-500.0,0.00022465,3]
[348482802,1736565044447,-3168.77,0.00022465,3]
[348482803,1736565044456,-500.0,0.00022465,3]
[348482804,1736565044465,-500.0,0.00022465,3]
[348482805,1736565044475,-503.07,0.00022465,3]
[348482806,1736565044484,-500.0,0.00022465,2]
[348482807,1736565044494,-598.28,0.00022465,3]
[348482808,1736565044504,-633.09,0.00022465,3]
[348482809,1736565044513,-1682.72,0.00022465,3]
[348482810,1736565044522,-515.51,0.00022465,3]
[348482811,1736565044532,-618.58,0.00022465,3]
[348482812,1736565044541,-500.0,0.00022465,3]
[348482813,1736565044550,-500.0,0.00022465,2]
[348482814,1736565044560,-500.0,0.00022465,3]
[348482815,1736565044569,-3316.56,0.00022465,3]
[348482816,1736565044579,-1032.0,0.00022465,3]
[348482817,1736565044588,-500.0,0.00022465,3]
[348482818,1736565044598,-619.66,0.00022465,3]
[348482819,1736565044608,-500.0,0.00022465,3]
[348482820,1736565044617,-745.89,0.00022465,3]
[348482821,1736565044629,-500.0,0.00022465,3]
[348482822,1736565044639,-500.0,0.00022465,3]
[348482823,1736565044649,-500.0,0.00022465,3]
[348482824,1736565044658,-547.7,0.00022465,3]
[348482825,1736565044668,-531.87,0.00022465,3]
[348482826,1736565044677,-500.0,0.00022465,3]
[348482827,1736565044687,-500.0,0.00022465,3]
[348482828,1736565044696,-500.0,0.00022465,3]
[348482829,1736565044705,-500.0,0.00022465,3]
[348482830,1736565044714,-1306.6,0.00022465,3]
[348482831,1736565044724,-654.15,0.00022465,3]
[348482832,1736565044733,-500.0,0.00022465,3]
[348482833,1736565044742,-500.0,0.00022465,3]
[348482834,1736565044751,-1248.86,0.00022465,3]
[348482835,1736565044761,-500.0,0.00022465,3]
[348482836,1736565044770,-500.0,0.00022465,3]
[348482837,1736565044779,-526.36,0.00022465,3]
[348482838,1736565044789,-500.0,0.00022465,3]
[348482839,1736565044798,-707.27,0.00022465,3]
[348482840,1736565044807,-5342.55,0.00022465,3]
[348482841,1736565044817,-151.513426,0.00022499,7]
[348482842,1736565044827,-152.794486,0.00022499,7]
[348482843,1736565044839,-202.517879,0.00022499,7]
[348482844,1736565044851,-226820.5269746,0.00022499,15]
[348482845,1736565044861,-1600718.3703721,0.000225,5]
[348482846,1736565044967,-104157.08158592,0.000225,5]
[348482847,1736565045321,-164.98582737,0.000199,2]
[348482848,1736565045330,-500.0,0.00021973,2]
[348482849,1736565045340,-397.255,0.00022146,2]
[348482850,1736565045350,-27128.93496777,0.000225,5]
[348482851,1736565045362,-515.19372594,0.000225,5]
[348482852,1736565045374,-480.93019384,0.000225,5]
[348482881,1736565046132,-497.93807872,0.00021916,2]
[348482883,1736565046142,-596.36184128,0.00022289,2]
[348483718,1736566232632,-968.30012224,0.00019793,2]
[348483721,1736566232644,-8794.92300924,0.00019793,2]
[348483723,1736566232654,-999.13131257,0.00019893,2]
[348483725,1736566232664,-150.0,0.000204,2]
[348483727,1736566232674,-399.377059,0.00020981,2]
[348483729,1736566232684,-557.837,0.0002137,2]
[348483731,1736566232694,-736.70635546,0.000219,2]
[348483733,1736566232704,-155.58,0.00021916,2]
[348483735,1736566232713,-500.0,0.00021916,2]
[348483737,1736566232723,-500.0,0.00021916,2]
[348483739,1736566232733,-500.0,0.00021916,2]
[348483741,1736566232743,-500.0,0.00021916,2]
[348483743,1736566232753,-500.0,0.00021916,2]
[348483745,1736566232763,-587.01629487,0.00021916,2]
[348483747,1736566232772,-401.59654302,0.00021916,2]
[348483749,1736566232782,-500.0,0.00021916,2]
[348483751,1736566232793,-500.0,0.00021916,2]
[348483753,1736566232803,-500.0,0.00021916,2]
[348483755,1736566232812,-205.21948007,0.00021916,2]
[348483757,1736566232821,-500.0,0.00021917,3]
[348483759,1736566232831,-511.96904977,0.00021917,3]
[348483761,1736566232841,-500.0,0.00021917,3]
[348483763,1736566232851,-500.0,0.00021917,3]
[348483765,1736566232861,-601.43,0.00021917,3]
[348483767,1736566232871,-227.45372013,0.00021917,3]
[348483769,1736566232880,-500.0,0.00021917,3]
[348483771,1736566232890,-526.47728468,0.00021917,3]
[348483773,1736566232900,-500.0,0.00021917,3]
[348483775,1736566232910,-500.0,0.00021917,3]
[348483777,1736566232919,-500.0,0.00021917,3]
[348483779,1736566232929,-500.0,0.00021917,3]
[348483782,1736566232939,-500.0,0.00021917,3]
[348483783,1736566232949,-1166.87,0.00021917,3]
[348483785,1736566232958,-500.0,0.00021917,3]
[348483787,1736566232967,-500.0,0.00021917,3]
[348483789,1736566232976,-500.0,0.00021917,3]
[348483791,1736566232986,-500.0,0.00021917,3]
[348483793,1736566232995,-500.0,0.00021917,3]
[348483795,1736566233005,-500.0,0.00021917,3]
[348483797,1736566233015,-500.0,0.00021917,3]
[348483799,1736566233025,-500.0,0.00021917,3]
[348483801,1736566233034,-500.0,0.00021917,3]